[Event "SS Manhem Chess Week GM and IM tournaments 2018"]
[Site "Molnlycke kulturhus, Biblioteksgatan 2, Molnlycke, Sweden"]
[Date "2018.08.17"]
[Round "9.10"]
[White "Ernst, Thomas"]
[Black "Kucuksari, Kaan"]
[Result "1/2-1/2"]
[TimeControl "90 minutes for 40 moves + 30 minutes for the rest of the game + 30 seconds per move from move one."]
[WhiteTitle "GM"]
[BlackTitle "FM"]
[WhiteFideId "1700065"]
[BlackFideId "6380166"]
[WhiteElo "2346"]
[BlackElo "2329"]

1. d4 {[%clk 01:30:56]} {[%emt 00:00:03]} Nf6 {[%clk 01:30:55]} {[%emt
00:00:05]} 2. c4 {[%clk 01:31:20]} {[%emt 00:00:07]} e6 {[%clk 01:31:22]}
{[%emt 00:00:04]} 3. Nc3 {[%clk 01:31:41]} {[%emt 00:00:08]} Bb4 {[%clk
01:31:48]} {[%emt 00:00:04]} 4. e3 {[%clk 01:31:18]} {[%emt 00:00:53]} d5
{[%clk 01:31:26]} {[%emt 00:00:52]} 5. Nf3 {[%clk 01:30:15]} {[%emt 00:01:33]}
O-O {[%clk 01:31:45]} {[%emt 00:00:10]} 6. Bd3 {[%clk 01:30:34]} {[%emt
00:00:11]} b6 {[%clk 01:31:54]} {[%emt 00:00:22]} 7. a3 {[%clk 01:30:10]}
{[%emt 00:00:54]} Bd6 {[%clk 01:32:10]} {[%emt 00:00:14]} 8. e4 {[%clk
01:29:11]} {[%emt 00:01:28]} dxe4 {[%clk 01:30:35]} {[%emt 00:02:06]} 9. Nxe4
{[%clk 01:29:29]} {[%emt 00:00:11]} Bb7 {[%clk 01:20:48]} {[%emt 00:10:18]} 10.
Nxf6+ {[%clk 01:24:42]} {[%emt 00:05:16]} gxf6 {[%clk 01:08:54]} {[%emt
00:12:24]} 11. Qc2 {[%clk 01:19:51]} {[%emt 00:05:20]} f5 {[%clk 01:05:23]}
{[%emt 00:04:02]} 12. Bh6 {[%clk 01:19:45]} {[%emt 00:00:34]} Re8 {[%clk
01:00:56]} {[%emt 00:04:59]} 13. O-O-O {[%clk 01:20:00]} {[%emt 00:00:15]} Nd7
{[%clk 00:58:05]} {[%emt 00:03:21]} 14. Rhg1 {[%clk 01:18:49]} {[%emt
00:01:41]} Qf6 {[%clk 00:53:32]} {[%emt 00:05:04]} 15. Be3 {[%clk 01:15:08]}
{[%emt 00:04:11]} c5 {[%clk 00:41:08]} {[%emt 00:12:54]} 16. d5 {[%clk
01:06:51]} {[%emt 00:08:46]} Ne5 {[%clk 00:40:39]} {[%emt 00:00:59]} 17. Nxe5
{[%clk 00:51:18]} {[%emt 00:16:03]} Bxe5 {[%clk 00:41:06]} {[%emt 00:00:02]} 18.
dxe6 {[%clk 00:49:08]} {[%emt 00:02:40]} fxe6 {[%clk 00:40:25]} {[%emt
00:01:12]} 19. g4 {[%clk 00:48:48]} {[%emt 00:00:49]} f4 {[%clk 00:37:38]}
{[%emt 00:03:18]} 20. Bxh7+ {[%clk 00:46:18]} {[%emt 00:02:59]} Kh8 {[%clk
00:36:40]} {[%emt 00:01:28]} 21. Bd2 {[%clk 00:46:34]} {[%emt 00:00:12]} Rad8
{[%clk 00:35:34]} {[%emt 00:01:38]} 22. Bc3 {[%clk 00:39:35]} {[%emt 00:07:28]}
Bxc3 {[%clk 00:20:20]} {[%emt 00:15:45]} 23. bxc3 {[%clk 00:39:56]} {[%emt
00:00:07]} Rxd1+ {[%clk 00:19:41]} {[%emt 00:01:10]} 24. Rxd1 {[%clk 00:40:12]}
{[%emt 00:00:15]} Bf3 {[%clk 00:19:23]} {[%emt 00:00:48]} 25. Rd7 {[%clk
00:34:01]} {[%emt 00:06:36]} Rd8 {[%clk 00:16:49]} {[%emt 00:03:07]} 26. Rxd8+
{[%clk 00:29:56]} {[%emt 00:04:37]} Qxd8 {[%clk 00:17:17]} 27. Be4 {[%clk
00:27:06]} {[%emt 00:03:20]} Bxg4 {[%clk 00:17:40]} {[%emt 00:00:08]} 28. f3
{[%clk 00:26:42]} {[%emt 00:00:53]} Bh3 {[%clk 00:16:44]} {[%emt 00:01:26]} 29.
Qa4 {[%clk 00:24:57]} {[%emt 00:02:13]} Bf5 {[%clk 00:10:04]} {[%emt 00:07:13]}
30. Bxf5 {[%clk 00:24:08]} {[%emt 00:01:20]} exf5 {[%clk 00:10:33]} {[%emt
00:00:01]} 31. Qxa7 {[%clk 00:24:23]} {[%emt 00:00:14]} Qd3 {[%clk 00:10:50]}
{[%emt 00:00:13]} 32. Qb8+ {[%clk 00:24:08]} {[%emt 00:00:42]} Kg7 {[%clk
00:11:03]} {[%emt 00:00:19]} 33. Qxf4 {[%clk 00:23:12]} {[%emt 00:01:27]} Qxc3+
{[%clk 00:11:31]} {[%emt 00:00:02]} 34. Kd1 {[%clk 00:23:20]} {[%emt 00:00:21]}
Qxa3 {[%clk 00:09:03]} {[%emt 00:02:59]} 35. h4 {[%clk 00:20:24]} {[%emt
00:03:25]} Qd3+ {[%clk 00:04:48]} {[%emt 00:04:46]} 36. Ke1 {[%clk 00:19:52]}
{[%emt 00:01:01]} Kg6 {[%clk 00:03:31]} {[%emt 00:01:48]} 37. Kf2 {[%clk
00:16:04]} {[%emt 00:04:16]} Qd4+ {[%clk 00:03:15]} {[%emt 00:00:48]} 38. Qxd4
{[%clk 00:14:42]} {[%emt 00:01:53]} cxd4 {[%clk 00:03:43]} {[%emt 00:00:02]} 39.
Ke2 {[%clk 00:15:01]} {[%emt 00:00:11]} Kh5 {[%clk 00:04:03]} {[%emt 00:00:11]}
40. Kd3 {[%clk 00:15:10]} {[%emt 00:00:21]} Kxh4 {[%clk 00:04:11]} {[%emt
00:00:22]} 41. Kxd4 {[%clk 00:15:14]} {[%emt 00:00:26]} Kg3 {[%clk 00:02:34]}
{[%emt 00:02:07]} 42. Ke3 {[%clk 00:13:50]} {[%emt 00:01:52]} Kg2 {[%clk
00:02:49]} {[%emt 00:00:10]} 1/2-1/2